fUSD/lending_fUSD_20250503
["ID","MTS","AMOUNT","RATE_DAILY","PERIOD"]
[359663613,1746231043924,-151.0,0.000199,2]
[359663614,1746231043936,-500.9716,0.000199,2]
[359663615,1746231043947,-12500.0,0.000199,2]
[359663616,1746231043959,-12500.0,0.000199,2]
[359663617,1746231043969,-184.43217753,0.000199,2]
[359663619,1746231043982,-165.86874314,0.000199,2]
[359663620,1746231043993,-233.19087662,0.000199,2]
[359663621,1746231044005,-389.3748034,0.000199,2]
[359663622,1746231044017,-156.63736674,0.000199,2]
[359663623,1746231044029,-165.78360708,0.000199,2]
[359663624,1746231044041,-180.12891608,0.000199,3]
[359663625,1746231044052,-253.85973984,0.000199,2]
[359663626,1746231044063,-151.0,0.000199,2]
[359663627,1746231044076,-150.0,0.00019904,2]
[359663628,1746231044087,-150.0,0.00019905,2]
[359663629,1746231044099,-150.0,0.00019914,2]
[359663630,1746231044111,-1000.0,0.0001993,2]
[359663631,1746231044122,-3104.202,0.00019949,2]
[359663632,1746231044134,-206.4,0.00019949,2]
[359663633,1746231044145,-1431.397,0.0001995,2]
[359663634,1746231044157,-920.0,0.0001995,2]
[359663635,1746231044168,-1231.202,0.0001995,2]
[359663636,1746231044179,-797.0,0.0001995,2]
[359663637,1746231044191,-1449.0,0.0001995,2]
[359663638,1746231044208,-914.0,0.0001995,2]
[359663639,1746231044219,-550.0,0.0001995,2]
[359663640,1746231044230,-581.0,0.0001995,2]
[359663641,1746231044240,-2071.0,0.0001995,2]
[359663642,1746231044251,-6753.0,0.0001995,2]
[359663643,1746231044261,-4006.0,0.0001995,2]
[359663644,1746231044271,-153.0,0.0001995,2]
[359663645,1746231044282,-878.0,0.0001995,2]
[359663646,1746231044293,-24257.0,0.00019973,2]
[359663647,1746231044304,-162.40954813,0.00019973,2]
[359663648,1746231044317,-500.0,0.00019973,2]
[359663649,1746231044330,-500.0,0.00019973,2]
[359663650,1746231044341,-505.12152298,0.00019973,2]
[359663651,1746231044351,-920.0,0.00019973,2]
[359663652,1746231044361,-501.47327578,0.00019973,2]
[359663653,1746231044371,-368.87036061,0.00019973,2]
[359663654,1746231044381,-500.0,0.00019973,2]
[359663655,1746231044391,-500.0,0.00019973,2]
[359663656,1746231044402,-500.95167534,0.00019973,2]
[359663657,1746231044414,-500.0,0.00019973,2]
[359663658,1746231044425,-165.99958587,0.00019973,2]
[359663659,1746231044437,-500.0,0.00019973,2]
[359663660,1746231044447,-500.0,0.00019973,2]
[359663661,1746231044458,-500.0,0.00019973,2]
[359663662,1746231044468,-162.22541034,0.00019973,2]
[359663663,1746231044478,-500.0,0.00019975,2]
[359663664,1746231044490,-500.0,0.00019975,2]
[359663665,1746231044503,-292.48900202,0.00019975,2]
[359663666,1746231044516,-500.0,0.00019975,2]
[359663667,1746231044527,-300.0,0.00019975,2]
[359663668,1746231044538,-450.0,0.00019975,2]
[359663669,1746231044548,-450.0,0.00019976,2]
[359663670,1746231044559,-450.0,0.00019976,2]
[359663671,1746231044570,-450.0,0.00019976,2]
[359663672,1746231044581,-450.0,0.00019976,2]
[359663673,1746231044593,-450.0,0.00019976,2]
[359663674,1746231044603,-450.0,0.00019976,2]
[359663675,1746231044614,-450.0,0.00019976,2]
[359663676,1746231044629,-150.0,0.00019976,2]
[359663677,1746231044640,-450.0,0.00019976,2]
[359663678,1746231044651,-450.0,0.00019976,2]
[359663679,1746231044663,-450.0,0.00019976,2]
[359663680,1746231044675,-527.32,0.00019976,2]
[359663681,1746231044688,-450.0,0.00019976,2]
[359663682,1746231044700,-450.0,0.00019976,2]
[359663683,1746231044712,-450.0,0.00019976,2]
[359663684,1746231044723,-450.0,0.00019976,2]
[359663685,1746231044735,-450.0,0.00019976,2]
[359663686,1746231044746,-450.0,0.00019976,2]
[359663687,1746231044758,-450.0,0.00019976,2]
[359663688,1746231044769,-450.0,0.00019976,2]
[359663689,1746231044781,-450.0,0.00019976,2]
[359663690,1746231044793,-450.0,0.00019976,2]
[359663691,1746231044804,-450.0,0.00019976,2]
[359663692,1746231044817,-450.0,0.00019976,2]
[359663693,1746231044827,-450.0,0.00019976,2]
[359663694,1746231044839,-450.0,0.00019976,2]
[359663695,1746231044849,-450.0,0.00019976,2]
[359663696,1746231044861,-330.5881024,0.00019976,2]
[359663697,1746231044871,-450.0,0.00019976,2]
[359663698,1746231044882,-776.18,0.00019976,2]
[359663699,1746231044892,-450.0,0.00019976,2]
[359663700,1746231044903,-450.0,0.00019976,2]
[359663701,1746231044914,-570.67,0.00019976,2]
[359663702,1746231044926,-450.0,0.00019976,2]
[359663703,1746231044938,-450.0,0.00019976,2]
[359663704,1746231044949,-450.0,0.00019976,2]
[359663705,1746231044965,-450.0,0.00019976,2]
[359663706,1746231044976,-450.0,0.00019976,2]
[359663707,1746231044987,-450.0,0.00019976,2]
[359663708,1746231044998,-450.0,0.00019976,2]
[359663709,1746231045009,-450.0,0.00019976,2]
[359663710,1746231045021,-450.0,0.00019976,2]
[359663711,1746231045032,-450.0,0.00019976,2]
[359663712,1746231045044,-467.95326205,0.00019976,2]
[359663713,1746231045055,-450.0,0.00019976,2]
[359663714,1746231045066,-194.00539675,0.00019976,2]
[359663715,1746231045076,-450.0,0.00019976,2]
[359663716,1746231045087,-450.0,0.00019976,2]
[359663717,1746231045098,-450.0,0.00019976,2]
[359663718,1746231045108,-450.0,0.00019976,2]
[359663719,1746231045119,-450.0,0.00019976,2]
[359663720,1746231045130,-450.0,0.00019976,2]
[359663721,1746231045141,-450.0,0.00019976,2]
[359663722,1746231045152,-450.0,0.00019976,2]
[359663723,1746231045162,-450.0,0.00019976,2]
[359663724,1746231045173,-450.0,0.00019976,2]
[359663725,1746231045184,-450.0,0.00019976,2]
[359663726,1746231045194,-450.0,0.00019976,2]
[359663727,1746231045205,-450.0,0.00019976,2]
[359663728,1746231045216,-450.0,0.00019976,2]
[359663729,1746231045226,-450.0,0.00019976,2]
[359663730,1746231045237,-450.0,0.00019976,2]
[359663731,1746231045247,-450.0,0.00019976,2]
[359663732,1746231045259,-450.0,0.00019976,2]
[359663733,1746231045269,-450.0,0.00019976,2]
[359663734,1746231045280,-450.0,0.00019976,2]
[359663735,1746231045291,-450.0,0.00019976,2]
[359663736,1746231045301,-450.0,0.00019976,2]
[359663737,1746231045312,-450.0,0.00019976,2]
[359663738,1746231045323,-479.34,0.00019976,2]
[359663739,1746231045334,-450.0,0.00019976,2]
[359663740,1746231045346,-450.0,0.00019976,2]
[359663741,1746231045356,-450.0,0.00019976,2]
[359663742,1746231045367,-498.69,0.00019976,2]
[359663743,1746231045378,-485.27,0.00019976,2]
[359663744,1746231045389,-450.0,0.00019976,2]
[359663745,1746231045399,-450.0,0.00019976,2]
[359663746,1746231045410,-835.61,0.00019976,2]
[359663747,1746231045421,-450.0,0.00019976,2]
[359663748,1746231045431,-450.0,0.00019976,2]
[359663749,1746231045442,-450.0,0.00019976,2]
[359663750,1746231045453,-450.0,0.00019976,2]
[359663751,1746231045463,-903.09,0.00019976,2]
[359663752,1746231045474,-450.0,0.00019976,2]
[359663753,1746231045494,-450.0,0.00019976,2]
[359663754,1746231045513,-450.0,0.00019976,2]
[359663755,1746231045529,-663.83,0.00019976,2]
[359663756,1746231045542,-5354.27,0.00019976,2]
[359663757,1746231045556,-450.0,0.00019976,2]
[359663758,1746231045568,-450.0,0.00019976,2]
[359663759,1746231045580,-450.0,0.00019976,2]
[359663760,1746231045593,-450.0,0.00019976,2]
[359663761,1746231045605,-155.9,0.00019976,2]
[359663762,1746231045617,-450.0,0.00019976,2]
[359663763,1746231045629,-450.0,0.00019976,2]
[359663764,1746231045641,-450.0,0.00019976,2]
[359663765,1746231045653,-450.0,0.00019976,2]
[359663766,1746231045666,-450.0,0.00019976,2]
[359663767,1746231045677,-450.0,0.00019976,2]
[359663768,1746231045689,-450.0,0.00019976,2]
[359663769,1746231045701,-450.0,0.00019976,2]
[359663770,1746231045713,-480.35,0.00019976,2]
[359663771,1746231045725,-450.0,0.00019976,2]
[359663772,1746231045737,-450.0,0.00019976,2]
[359663773,1746231045748,-450.0,0.00019976,2]
[359663774,1746231045759,-450.0,0.00019976,2]
[359663775,1746231045771,-450.0,0.00019976,2]
[359663776,1746231045783,-450.0,0.00019976,2]
[359663777,1746231045794,-549.97,0.00019976,2]
[359663778,1746231045805,-450.0,0.00019976,2]
[359663779,1746231045817,-450.0,0.00019976,2]
[359663780,1746231045829,-496.0,0.00019976,2]
[359663781,1746231045841,-513.03,0.00019976,2]
[359663782,1746231045853,-450.0,0.00019976,2]
[359663783,1746231045865,-450.0,0.00019976,2]
[359663784,1746231045878,-450.0,0.00019976,2]
[359663785,1746231045890,-450.0,0.00019976,2]
[359663786,1746231045901,-638.28,0.00019976,2]
[359663787,1746231045912,-450.0,0.00019976,2]
[359663788,1746231045923,-241.72896468,0.00019976,2]
[359663789,1746231045934,-2089.06,0.00019976,2]
[359663790,1746231045945,-450.0,0.00019976,2]
[359663791,1746231045956,-450.0,0.00019976,2]
[359663792,1746231045967,-450.0,0.00019976,2]
[359663793,1746231045978,-450.0,0.00019976,2]
[359663794,1746231045989,-505.31026206,0.00019976,2]
[359663795,1746231046001,-450.0,0.00019976,2]
[359663796,1746231046012,-454.91,0.00019976,2]
[359663797,1746231046023,-471.06,0.00019976,2]
[359663798,1746231046035,-450.0,0.00019976,2]
[359663799,1746231046045,-450.0,0.00019976,2]
[359663800,1746231046057,-450.0,0.00019976,2]
[359663801,1746231046068,-450.0,0.00019976,2]
[359663802,1746231046078,-450.0,0.00019976,2]
[359663803,1746231046089,-450.0,0.00019976,2]
[359663804,1746231046100,-450.0,0.00019976,2]
[359663805,1746231046111,-450.0,0.00019976,2]
[359663806,1746231046121,-450.0,0.00019976,2]
[359663807,1746231046132,-450.0,0.00019976,2]
[359663808,1746231046143,-1433.55,0.00019976,2]
[359663810,1746231046154,-450.0,0.00019976,2]
[359663811,1746231046164,-450.0,0.00019976,2]
[359663812,1746231046175,-450.56,0.00019976,2]
[359663813,1746231046186,-450.0,0.00019976,2]
[359663814,1746231046197,-515.95,0.00019976,2]
[359663815,1746231046208,-450.0,0.00019976,2]
[359663816,1746231046218,-450.0,0.00019976,2]
[359663817,1746231046229,-450.0,0.00019976,2]
[359663818,1746231046239,-450.0,0.00019976,2]
[359663820,1746231046250,-450.0,0.00019976,2]
[359663822,1746231046261,-450.0,0.00019976,2]
[359663824,1746231046272,-1117.58,0.00019976,2]
[359663825,1746231046283,-450.0,0.00019976,2]
[359663826,1746231046293,-999.0,0.00019976,2]
[359663827,1746231046304,-450.0,0.00019976,2]
[359663828,1746231046315,-651.94,0.00019976,2]
[359663829,1746231046326,-450.0,0.00019976,2]
[359663830,1746231046338,-450.0,0.00019976,2]
[359663831,1746231046349,-475.31,0.00019976,2]
[359663832,1746231046359,-450.0,0.00019976,2]
[359663833,1746231046371,-1702.92,0.00019976,2]
[359663834,1746231046382,-450.0,0.00019976,2]
[359663835,1746231046393,-450.0,0.00019976,2]
[359663836,1746231046404,-450.0,0.00019976,2]
[359663837,1746231046415,-450.0,0.00019976,2]
[359663838,1746231046427,-479.31,0.00019976,2]
[359663839,1746231046437,-1136.88,0.00019976,2]
[359663840,1746231046449,-450.0,0.00019976,2]
[359663841,1746231046461,-499.91,0.00019976,2]
[359663842,1746231046472,-450.0,0.00019976,2]
[359663843,1746231046483,-315.22504934,0.00019976,2]
[359663844,1746231046495,-450.0,0.00019976,2]
[359663845,1746231046506,-450.0,0.00019976,2]
[359663846,1746231046520,-450.0,0.00019976,2]
[359663847,1746231046531,-486.48,0.00019976,2]
[359663848,1746231046542,-3098.33,0.00019976,2]
[359663849,1746231046553,-1552.71,0.00019976,2]
[359663850,1746231046566,-4617.77,0.00019976,2]
[359663851,1746231046579,-450.0,0.00019976,2]
[359663852,1746231046590,-839.78,0.00019976,2]
[359663853,1746231046602,-952.55,0.00019976,2]
[359663854,1746231046613,-450.0,0.00019976,2]
[359663855,1746231046625,-450.0,0.00019976,2]
[359663856,1746231046636,-1096.26,0.00019976,2]
[359663857,1746231046649,-617.0,0.00019976,2]
[359663858,1746231046662,-328.43390331,0.00019976,2]
[359663859,1746231046673,-887.939394,0.00019976,2]
[359663860,1746231046684,-442.9014649,0.00019976,2]
[359663861,1746231046694,-480.56,0.00019976,2]
[359663862,1746231046706,-410.11033418,0.00019976,2]
[359663863,1746231046718,-501.55,0.00019976,2]
[359663864,1746231046728,-1527.13,0.00019976,2]
[359663865,1746231046741,-450.0,0.00019976,2]
[359663866,1746231046753,-450.0,0.00019976,2]
[359663867,1746231046763,-727.59,0.00019976,2]
[359663868,1746231046774,-450.0,0.00019976,2]
[359663869,1746231046784,-353.16523101,0.00019976,2]
[359663870,1746231046795,-450.0,0.00019976,2]
[359663871,1746231046807,-450.0,0.00019976,2]
[359663872,1746231046817,-450.0,0.00019976,2]
[359663873,1746231046828,-493.72,0.00019976,2]
[359663874,1746231046839,-542.94,0.00019976,2]
[359663875,1746231046853,-587.92,0.00019976,2]
[359663876,1746231046863,-450.0,0.00019976,2]
[359663877,1746231046876,-484.92,0.00019976,2]
[359663878,1746231046886,-635.156915,0.00019976,2]
[359663879,1746231046897,-450.0,0.00019976,2]
[359663880,1746231046907,-450.0,0.00019976,2]
[359663881,1746231046921,-450.0,0.00019976,2]
[359663882,1746231046932,-450.0,0.00019976,2]
[359663887,1746231047357,-337.06400703,0.00019976,2]
[359663888,1746231047422,-1074.92705239,0.00019976,2]
[359663889,1746231047441,-450.0,0.00019977,2]
[359663890,1746231047458,-450.0,0.00019977,2]
[359663891,1746231047471,-450.0,0.00019977,2]
[359663892,1746231047482,-450.0,0.00019977,2]
[359663893,1746231047492,-450.0,0.00019977,2]
[359663894,1746231047502,-450.0,0.00019977,2]
[359663895,1746231047512,-450.0,0.00019977,2]
[359663896,1746231047524,-450.0,0.00019977,2]
[359663897,1746231047535,-450.0,0.00019977,2]
[359663898,1746231047544,-450.0,0.00019977,2]
[359663899,1746231047555,-450.0,0.00019977,2]
[359663900,1746231047564,-450.0,0.00019977,2]
[359663901,1746231047573,-450.0,0.00019977,2]
[359663902,1746231047583,-450.0,0.00019977,2]
[359663903,1746231047593,-450.0,0.00019977,2]
[359663904,1746231047603,-450.0,0.00019977,2]
[359663905,1746231047613,-782.56,0.00019977,2]
[359663906,1746231047623,-450.0,0.00019977,2]
[359663907,1746231047633,-450.0,0.00019977,2]
[359663908,1746231047643,-450.0,0.00019977,2]
[359663909,1746231047652,-450.0,0.00019977,2]
[359663910,1746231047662,-965.0,0.00019977,2]
[359663911,1746231047672,-531.42,0.00019977,2]
[359663912,1746231047682,-450.0,0.00019977,2]
[359663913,1746231047692,-450.0,0.00019977,2]
[359663914,1746231047702,-612.31,0.00019977,2]
[359663915,1746231047712,-802.5,0.00019977,2]
[359663916,1746231047722,-300.0,0.00019977,2]
[359663917,1746231047733,-450.0,0.00019977,2]
[359663918,1746231047744,-486.32,0.00019977,2]
[359663919,1746231047754,-467.65045518,0.00019977,2]
[359663920,1746231047765,-450.0,0.00019977,2]
[359663921,1746231047775,-450.0,0.00019977,2]
[359663922,1746231047785,-424.60009718,0.00019977,2]
[359663923,1746231047795,-450.0,0.00019977,2]
[359663924,1746231047805,-450.0,0.00019977,2]
[359663925,1746231047814,-450.0,0.00019977,2]
[359663926,1746231047824,-450.0,0.00019977,2]
[359663927,1746231047834,-450.0,0.00019977,2]
[359663928,1746231047844,-2540.43,0.00019977,2]
[359663929,1746231047853,-450.0,0.00019977,2]
[359663930,1746231047863,-540.15711062,0.00019977,2]
[359663931,1746231047872,-507.17,0.00019977,2]
[359663932,1746231047882,-450.0,0.00019977,2]
[359663933,1746231047892,-462.48,0.00019977,2]
[359663934,1746231047901,-450.0,0.00019977,2]
[359663935,1746231047911,-1066.25,0.00019977,2]
[359663936,1746231047920,-450.0,0.00019977,2]
[359663937,1746231047930,-450.0,0.00019977,2]
[359663938,1746231047940,-450.0,0.00019977,2]
[359663939,1746231047949,-450.0,0.00019977,2]
[359663940,1746231047959,-450.0,0.00019977,2]
[359663941,1746231047968,-1097.96,0.00019977,2]
[359663942,1746231047978,-450.0,0.00019977,2]
[359663943,1746231047988,-450.0,0.00019977,2]
[359663944,1746231047997,-450.0,0.00019977,2]
[359663945,1746231048007,-450.0,0.00019977,2]
[359663946,1746231048017,-450.0,0.00019977,2]
[359663947,1746231048027,-450.0,0.00019977,2]
[359663948,1746231048037,-450.0,0.00019977,2]
[359663949,1746231048047,-450.0,0.00019977,2]
[359663950,1746231048057,-656.32,0.00019977,2]
[359663951,1746231048067,-450.0,0.00019977,2]
[359663952,1746231048077,-450.0,0.00019977,2]
[359663953,1746231048087,-489.03,0.00019977,2]
[359663954,1746231048097,-450.0,0.00019977,2]
[359663955,1746231048107,-500.0,0.00019977,2]
[359663956,1746231048116,-450.0,0.00019977,2]
[359663957,1746231048126,-150.0,0.00019977,2]
[359663958,1746231048136,-450.0,0.00019977,2]
[359663959,1746231048146,-450.0,0.00019977,2]
[359663960,1746231048156,-450.0,0.00019977,2]
[359663961,1746231048166,-583.28,0.00019977,2]
[359663962,1746231048175,-450.0,0.00019977,2]
[359663963,1746231048185,-450.0,0.00019977,2]
[359663964,1746231048196,-450.0,0.00019977,2]
[359663965,1746231048206,-1069.14,0.00019977,2]
[359663966,1746231048215,-450.0,0.00019977,2]
[359663967,1746231048225,-559.8,0.00019977,2]
[359663968,1746231048235,-450.0,0.00019977,2]
[359663969,1746231048245,-557.94548119,0.00019977,2]
[359663970,1746231048255,-568.08,0.00019977,2]
[359663971,1746231048265,-450.0,0.00019977,2]
[359663972,1746231048275,-1469.36,0.00019977,2]
[359663973,1746231048285,-450.0,0.00019977,2]
[359663974,1746231048295,-539.26,0.00019977,2]
[359663975,1746231048304,-703.58,0.00019977,2]
[359663976,1746231048314,-450.0,0.00019977,2]
[359663977,1746231048324,-553.05309995,0.00019977,2]
[359663978,1746231048334,-518.88,0.00019977,2]
[359663979,1746231048344,-450.0,0.00019977,2]
[359663980,1746231048354,-450.0,0.00019977,2]
[359663981,1746231048364,-540.87,0.00019977,2]
[359663982,1746231048374,-694.92,0.00019977,2]
[359663983,1746231048383,-450.0,0.00019977,2]
[359663984,1746231048393,-450.0,0.00019977,2]
[359663985,1746231048403,-697.81,0.00019977,2]
[359663986,1746231048413,-577.57,0.00019977,2]
[359663987,1746231048423,-688.86,0.00019977,2]
[359663988,1746231048433,-1682.8,0.00019977,2]
[359663989,1746231048443,-450.0,0.00019977,2]
[359663990,1746231048455,-577.78,0.00019977,2]
[359663991,1746231048465,-463.08,0.00019977,2]
[359663992,1746231048475,-1090.25,0.00019977,2]
[359663993,1746231048485,-745.86,0.00019977,2]
[359663994,1746231048495,-450.0,0.00019977,2]
[359663995,1746231048504,-450.0,0.00019977,2]
[359663996,1746231048518,-450.0,0.00019977,2]
[359663997,1746231048528,-450.0,0.00019977,2]
[359663998,1746231048538,-450.0,0.00019977,2]
[359663999,1746231048548,-500.09,0.00019977,2]
[359664000,1746231048558,-892.21,0.00019977,2]
[359664001,1746231048569,-450.0,0.00019977,2]
[359664002,1746231048579,-462.34,0.00019977,2]
[359664003,1746231048589,-1123.42,0.00019977,2]
[359664004,1746231048600,-450.0,0.00019977,2]
[359664005,1746231048611,-450.0,0.00019977,2]
[359664006,1746231048621,-247.39460982,0.00019977,2]
[359664007,1746231048631,-543.61,0.00019977,2]
[359664008,1746231048641,-563.53,0.00019977,2]
[359664009,1746231048650,-701.94,0.00019977,2]
[359664010,1746231048660,-726.12,0.00019977,2]
[359664011,1746231048670,-1480.88,0.00019977,2]
[359664012,1746231048679,-450.0,0.00019977,2]
[359664013,1746231048689,-610.59,0.00019977,2]
[359664014,1746231048700,-786.91,0.00019977,2]
[359664015,1746231048710,-450.0,0.00019977,2]
[359664016,1746231048720,-150.0,0.00019977,2]
[359664017,1746231048730,-500.0,0.00019977,2]
[359664018,1746231048740,-423.0,0.00019977,2]
[359664019,1746231048750,-500.0,0.00019977,2]
[359664020,1746231048760,-500.0,0.00019977,2]
[359664021,1746231048769,-450.0,0.00019977,2]
[359664022,1746231048780,-150.0,0.00019977,2]
[359664023,1746231048790,-500.0,0.00019977,2]
[359664024,1746231048800,-3655.49,0.00019977,2]
[359664025,1746231048809,-450.0,0.00019977,2]
[359664026,1746231048819,-450.0,0.00019977,2]
[359664027,1746231048829,-450.0,0.00019977,2]
[359664028,1746231048838,-874.91,0.00019977,2]
[359664029,1746231048849,-854.44,0.00019977,2]
[359664030,1746231048859,-4176.81,0.00019977,2]
[359664031,1746231048868,-732.29,0.00019977,2]
[359664032,1746231048877,-450.0,0.00019977,2]
[359664033,1746231048887,-450.0,0.00019977,2]
[359664034,1746231048897,-3876.87,0.00019977,2]
[359664035,1746231048907,-450.0,0.00019977,2]
[359664036,1746231048916,-450.0,0.00019977,2]
[359664037,1746231048925,-450.0,0.00019977,2]
[359664038,1746231048936,-450.0,0.00019977,2]
[359664039,1746231048946,-526.06,0.00019977,2]
[359664040,1746231048955,-150.0,0.00019977,2]
[359664041,1746231048965,-450.0,0.00019977,2]
[359664042,1746231048975,-418.0,0.00019977,2]
[359664043,1746231048985,-664.83,0.00019977,2]
[359664044,1746231048995,-500.0,0.00019977,2]
[359664045,1746231049005,-150.0,0.00019977,2]
[359664046,1746231049014,-4159.82,0.00019977,2]
[359664047,1746231049025,-2267.11,0.00019977,2]
[359664048,1746231049035,-450.0,0.00019977,2]
[359664049,1746231049044,-90141.47,0.00019977,2]
[359664050,1746231049054,-968.43,0.00019977,2]
[359664051,1746231049064,-657.11,0.00019977,2]
[359664052,1746231049074,-4940.44,0.00019977,2]
[359664053,1746231049083,-28449.27,0.00019977,2]
[359664054,1746231049093,-2021.19,0.00019977,2]
[359664055,1746231049102,-527.49,0.00019977,2]
[359664056,1746231049112,-1788.25,0.00019977,2]
[359664057,1746231049122,-500.0,0.00019977,2]
[359664058,1746231049132,-500.0,0.00019977,2]
[359664059,1746231049141,-15764.95,0.00019977,2]
[359664060,1746231049152,-500.0,0.00019977,2]
[359664061,1746231049162,-150.0,0.00019977,2]
[359664062,1746231049172,-1728.0,0.00019986,2]
[359664063,1746231049182,-150.0,0.00019986,2]
[359664064,1746231049192,-81430.0147406,0.00019986,2]
[359664065,1746231049202,-2974.7242777,0.00019986,2]
[359664066,1746231049212,-88997.6054955,0.00019986,2]
[359664067,1746231049222,-24469.9215199,0.00019986,2]
[359664068,1746231049231,-21788.756873,0.00019986,2]
[359664069,1746231049241,-19107.592226,0.00019986,2]
[359664070,1746231049251,-150.050308,0.0001999,2]
[359664071,1746231049261,-1074.92705239,0.0001999,2]
[359664072,1746231049270,-1074.92705239,0.0001999,2]
[359664073,1746231049282,-150.050308,0.00019991,2]
[359664074,1746231049291,-150.050308,0.00019992,2]
[359664075,1746231049301,-150.050308,0.00019993,2]
[359664076,1746231049311,-150.050308,0.00019994,2]
[359664077,1746231049320,-150.050308,0.00019995,2]
[359664078,1746231049330,-150.050308,0.00019996,2]
[359664079,1746231049342,-150.050308,0.00019997,2]
[359664080,1746231049352,-150.050308,0.00019998,2]
[359664081,1746231049363,-500.0,0.00019999,2]
[359664082,1746231049374,-675.05638042,0.00019999,2]
[359664083,1746231049383,-500.0,0.00019999,2]
[359664084,1746231049393,-300.0,0.00019999,2]
[359664085,1746231049403,-300.0,0.00019999,2]
[359664086,1746231049413,-1000.0,0.00019999,2]
[359664087,1746231049423,-259.59690718,0.0002,2]
[359664088,1746231049434,-539939.9504825,0.0002,2]
[359664089,1746231049444,-885170.33779042,0.0002,2]
[359664090,1746231049454,-1779.54156445,0.0002,2]
[359664091,1746231049464,-30000.0,0.0002,2]
[359664092,1746231049474,-1000.0,0.0002,2]
[359664093,1746231049485,-1000.0,0.0002,2]
[359664094,1746231049495,-1000.0,0.0002,2]
[359664095,1746231049506,-1000.0,0.0002,2]
[359664096,1746231049520,-1000.0,0.0002,2]
[359664097,1746231049530,-1000.0,0.0002,2]
[359664098,1746231049542,-1000.0,0.0002,2]
[359664099,1746231049553,-1000.0,0.0002,2]
[359664100,1746231049565,-1000.0,0.0002,2]
[359664101,1746231049575,-1000.0,0.0002,2]
[359664102,1746231049584,-1000.0,0.0002,2]
[359664103,1746231049594,-1000.0,0.0002,2]
[359664104,1746231049606,-1000.0,0.0002,2]
[359664105,1746231049616,-1000.0,0.0002,2]
[359664106,1746231049626,-1000.0,0.0002,2]
[359664107,1746231049636,-1000.0,0.0002,2]
[359664108,1746231049646,-1000.0,0.0002,2]
[359664109,1746231049657,-1000.0,0.0002,2]
[359664110,1746231049668,-1000.0,0.0002,2]
[359664111,1746231049678,-1000.0,0.0002,2]
[359664112,1746231049688,-1000.0,0.0002,2]
[359664113,1746231049698,-1000.0,0.0002,2]
[359664114,1746231049708,-1000.0,0.0002,2]
[359664115,1746231049717,-1000.0,0.0002,2]
[359664116,1746231049727,-1000.0,0.0002,2]
[359664117,1746231049737,-1000.0,0.0002,2]
[359664118,1746231049746,-1000.0,0.0002,2]
[359664119,1746231049757,-1000.0,0.0002,2]
[359664120,1746231049767,-1000.0,0.0002,2]
[359664121,1746231049777,-1000.0,0.0002,2]